bitfinex-derivatives/quotes_ETHF0:USTF0_20250702
["timestamp","ask_amount","ask_price","bid_price","bid_amount"]
[1751459881603,0.82025,2437.8,2437.7,0.8202]
[1751459881900,0.82025,2437.8,2437.7,3.48530407]
[1751459882305,0.82025,2437.8,2437.7,4.21460407]
[1751459887206,0.82025,2437.8,2437.7,1.5495]
[1751459887705,0.82025,2437.8,2437.7,2.9494]
[1751459888108,0.82025,2437.8,2437.7,2.94944]
[1751459893805,0.82025,2437.8,2437.7,2.1292]
[1751459894111,0.82025,2437.8,2437.7,2.94944]
[1751459894313,0.82025,2437.8,2437.7,0.7293]
[1751459894511,1.52465,2437.8,2437.7,0.7293]
[1751459895610,0.7044,2437.8,2437.5,0.82029]
[1751459895806,0.82031,2437.5,2437.4,0.6714]
[1751459896111,0.82031,2437.5,2437.4,1.49172]
[1751459898108,25.8663,2437.6,2437.5,0.82031]
[1751459898313,25.8663,2437.6,2437.5,4.82071407]
[1751459898815,25.8663,2437.6,2437.5,2.15561]
[1751459900616,25.8663,2437.6,2437.5,4.82071407]
[1751459901015,0.8203,2437.6,2437.5,4.82071407]
[1751459901216,0.82027,2437.7,2437.6,0.82022]
[1751459901520,25.044,2437.8,2437.7,0.82024]
[1751459901915,25.044,2437.8,2437.7,2.23914]
[1751459904815,12.46317,2437.9,2437.8,0.82021]
[1751459905016,37.50617,2437.9,2437.8,1.52721]
[1751459905321,0.82029,2437.7,2437.6,0.82024]
[1751459906023,2.05061,2437.7,2437.1,2.05108]
[1751459906221,0.82034,2437.5,2437.4,0.82031]
[1751459906522,0.82036,2437.4,2437.3,0.82032]
[1751459906718,0.82032,2437.5,2437.4,0.82031]
[1751459907019,25.86231,2437.6,2437.5,0.82031]
[1751459907616,0.82031,2437.5,2437.4,3.48541407]
[1751459909622,25.86229,2437.6,2437.5,0.82031]
[1751459909817,12.46325,2437.8,2437.5,1.3759]
[1751459910017,37.50625,2437.8,2437.7,3.48531407]
[1751459910517,37.50625,2437.8,2437.7,4.93241407]
[1751459911419,36.686,2437.8,2437.7,4.93241407]
[1751459911616,11.643,2437.8,2437.7,4.93241407]
[1751459911819,25.042,2437.9,2437.8,0.82021]
[1751459912020,25.042,2437.9,2437.8,2.26731]
[1751459915324,12.45915,2438.0,2437.9,0.82017]
[1751459915526,12.45914,2438.0,2437.9,0.82017]
[1751459915726,11.639,2438.0,2437.9,0.82017]
[1751459915924,11.639,2438.0,2437.9,3.48527407]
[1751459916620,36.679,2438.0,2437.9,3.48527407]
[1751459917629,11.639,2438.0,2437.9,3.48527407]
[1751459918230,11.639,2438.0,2437.9,44.28527407]
[1751459918827,11.638,2438.5,2438.4,0.82]
[1751459919133,0.00616118,2438.6,2438.5,0.81997]
[1751459919428,0.00616118,2438.6,2438.5,2.86687]
[1751459926432,11.638,2438.9,2438.8,0.81987]
[1751459926624,11.638,2438.9,2438.8,3.48497407]
[1751459926827,11.638,2438.9,2438.8,44.28497407]
[1751459929533,11.638,2438.9,2438.8,44.99117407]
[1751459932540,12.45784,2438.9,2438.8,44.99117407]
[1751459933241,11.638,2438.9,2438.8,44.99117407]
[1751459933436,12.45784,2438.9,2438.8,44.99117407]
[1751459933641,11.638,2438.9,2438.8,44.99117407]
[1751459933842,12.45784,2438.9,2438.8,44.99117407]
[1751459934140,11.638,2438.9,2438.8,44.99117407]
[1751459938445,0.68,2439.1,2439.0,0.8198]
[1751459938641,25.706,2439.1,2439.0,3.48490407]
[1751459938944,26.52577,2439.1,2439.0,3.48490407]
[1751459939439,25.706,2439.1,2439.0,3.48490407]
[1751459940544,25.026,2439.1,2439.0,3.48490407]
[1751459940744,12.45376,2439.2,2439.1,0.81977]
[1751459940947,37.47776,2439.2,2439.1,0.81977]
[1751459947248,11.634,2439.2,2439.1,0.81977]
[1751459947452,36.656,2439.2,2439.1,0.81977]
[1751459947655,37.47574,2439.2,2439.1,0.81977]
[1751459948150,0.6947,2439.3,2439.2,0.81974]
[1751459948355,38.1654,2439.3,2439.2,3.48484407]
[1751459949450,38.1654,2439.3,2439.2,2.66510407]
[1751459949755,38.1654,2439.3,2439.2,3.48484407]
[1751459952557,37.4707,2439.3,2439.2,3.48484407]
[1751459953057,0.82583118,2439.5,2439.4,0.81967]
[1751459953257,25.84483118,2439.5,2439.4,3.48477407]
[1751459953457,0.81967,2439.4,2439.3,1.53329]
[1751459953654,1.48767,2439.4,2439.3,0.81969]
[1751459954157,0.8197,2439.3,2439.2,0.8197]
[1751459954458,25.8377,2439.3,2439.2,0.8197]
[1751459955657,0.8197,2439.3,2439.2,0.8197]
[1751459955861,25.8367,2439.3,2439.2,3.48480407]
[1751459957557,25.017,2439.3,2439.0,2.66510407]
[1751459957762,12.4487,2439.4,2439.3,0.81967]
[1751459957963,37.4647,2439.4,2439.3,0.81967]
[1751459958153,37.4647,2439.4,2439.3,1.52537]
[1751459959164,0.8197,2439.4,2439.3,1.52537]
[1751459962062,0.81974,2439.2,2439.1,1.4507]
[1751459962263,25.83374,2439.2,2439.1,1.4507]
[1751459963366,25.83374,2439.2,2439.1,2.27044]
[1751459964966,25.83374,2439.2,2439.1,0.81974]
[1751459969170,25.014,2439.2,2438.9,1.3301]
[1751459969365,25.014,2439.2,2438.9,0.81983]
[1751459969366,0.8198,2439.0,2438.9,0.81983]
[1751459969765,0.8198,2439.0,2438.9,1.50583]
[1751459970467,0.8198,2439.0,2438.9,4.17093407]
[1751459970770,0.8198,2439.0,2438.9,5.52533407]
[1751459971970,0.81979,2439.1,2439.0,0.81977]
[1751459973273,25.83376,2439.2,2439.1,0.81977]
[1751459973572,12.44873,2439.3,2439.2,0.81974]
[1751459973767,37.45773,2439.3,2439.2,0.81974]
[1751459974269,37.45773,2439.3,2439.2,3.48484407]
[1751459974470,2.73674118,2439.5,2439.3,0.8197]
[1751459974471,0.81968,2439.4,2439.3,0.8197]
[1751459974670,37.45268,2439.4,2439.3,1.4935]
[1751459976070,37.45268,2439.4,2439.3,0.6738]
[1751459976272,0.81977,2439.3,2439.2,0.81972]
[1751459977068,0.81977,2439.2,2439.1,0.81974]
[1751459977470,0.81977,2439.1,2439.0,2.94477]
[1751459977670,25.82677,2439.1,2439.0,2.94477]
[1751459981178,25.82677,2439.1,2439.0,1.49357]
[1751459982376,25.006,2439.2,2439.0,5.38841407]
[1751459982777,25.006,2439.2,2439.1,1.35]
[1751459982977,25.006,2439.2,2439.1,2.16977]
[1751459984280,11.624,2439.4,2439.1,3.39938]
[1751459984477,25.82369,2439.4,2439.3,3.48477407]
[1751459985179,25.82369,2439.4,2439.3,2.66510407]
[1751459985379,25.82369,2439.4,2439.3,3.48480407]
[1751459985580,25.82369,2439.4,2439.3,2.66510407]
[1751459985882,25.004,2439.4,2439.1,2.66510407]
[1751459986082,0.81974,2439.2,2439.1,3.48483407]
[1751459986480,0.81974,2439.2,2439.1,3.48487407]
[1751459987475,0.81974,2439.2,2439.1,0.81977]
[1751459987674,0.81977,2439.1,2439.0,0.6738]
[1751459987879,27.05146,2439.1,2438.6,43.46510407]
[1751459988081,0.8199,2438.8,2438.6,43.46510407]
[1751459988382,0.8199,2438.8,2438.7,2.0477]
[1751459989287,0.81986,2438.9,2438.8,0.81984]
[1751459989884,5.44126407,2439.0,2438.6,0.00616118]
[1751459990185,0.8199,2438.7,2438.6,0.82608118]
[1751459990381,25.001,2438.7,2438.6,1.48658118]
[1751459990583,0.81989,2438.8,2438.7,0.8199]
[1751459990783,25.82189,2438.8,2438.7,3.48500407]
[1751459990986,25.82189,2438.8,2438.7,4.80840407]
[1751459991790,25.82189,2438.8,2438.7,0.8199]
[1751459992185,0.8199,2438.7,2438.6,1.48657118]
[1751459993089,0.81989,2438.8,2438.7,0.81986]
[1751459993284,25.82089,2438.8,2438.7,3.48496407]
[1751459993479,25.82089,2438.8,2438.7,4.85606407]
[1751459994390,25.82089,2438.8,2438.7,3.48496407]
[1751459995290,0.81989,2438.8,2438.7,3.48496407]
[1751459995491,25.82189,2438.8,2438.7,4.85196407]
[1751459996385,0.8199,2438.7,2438.6,1.48658118]
[1751459996791,0.8199,2438.7,2438.6,4.15168525]
[1751460002294,0.8199,2438.7,2438.6,1.48658118]
[1751460002490,0.8199,2438.7,2438.6,0.00616118]
[1751460002696,1.5332,2438.7,2438.6,0.00616118]
[1751460004798,38.1532,2438.7,2438.6,0.00616118]
[1751460005797,40.81830407,2438.7,2438.6,0.00616118]
[1751460006195,42.18800407,2438.7,2438.6,0.00616118]
[1751460006396,41.36810407,2438.7,2438.2,0.82004]
[1751460006591,0.82008,2438.3,2438.2,0.82004]
[1751460006796,25.82108,2438.3,2438.2,0.82004]
[1751460007197,25.82108,2438.3,2438.2,2.21974]
[1751460007398,25.82108,2438.3,2438.2,0.82004]
[1751460007800,0.82007,2438.2,2438.1,41.62008]
[1751460008001,0.82007,2438.2,2438.1,44.28518407]
[1751460008401,0.82007,2438.2,2438.1,43.04098]
[1751460008697,0.82007,2438.2,2438.1,45.70608407]
[1751460008893,0.82007,2438.2,2438.1,0.82008]
[1751460009296,0.82011,2438.1,2438.0,43.0607]
[1751460009603,0.8201,2438.2,2438.1,0.82006]
[1751460009803,25.8201,2438.2,2438.1,3.48516407]
[1751460010003,25.8201,2438.2,2438.1,4.90606407]
[1751460010397,25.0,2438.2,2438.1,4.90606407]
[1751460010598,25.82007,2438.2,2438.1,4.90606407]
[1751460011998,25.82007,2438.2,2438.1,0.82006]
[1751460012602,25.82007,2438.2,2438.1,3.48516407]
[1751460012800,25.82007,2438.2,2438.1,4.80686407]
[1751460013604,25.82007,2438.2,2438.1,2.14176]
[1751460013807,25.82007,2438.2,2438.1,4.80686407]
[1751460014200,0.82007,2438.2,2438.1,4.80686407]
[1751460014403,11.621,2438.5,2438.4,0.81997]
[1751460014605,11.621,2438.5,2438.4,3.48507407]
[1751460014606,36.621,2438.5,2438.4,3.48507407]
[1751460014809,11.621,2438.5,2438.4,3.48507407]
[1751460015007,36.622,2438.5,2438.4,3.48507407]
[1751460015208,11.621,2438.5,2438.4,4.85607407]
[1751460017409,0.81991,2438.7,2438.6,0.81994]
[1751460017608,25.82091,2438.7,2438.6,0.81994]
[1751460017810,25.82091,2438.7,2438.6,3.48504407]
[1751460018109,25.001,2438.7,2438.6,5.65534407]
[1751460019010,25.001,2438.7,2438.6,1.55024]
[1751460019409,25.8209,2438.7,2438.6,1.55024]
[1751460019806,25.8209,2438.7,2438.6,0.7303]
[1751460020507,0.81994,2438.6,2438.5,1.52306]
[1751460021309,25.82093,2438.7,2438.6,0.81994]
[1751460021708,25.82093,2438.7,2438.6,2.27064]
[1751460021907,25.82093,2438.7,2438.6,0.81994]
[1751460022108,0.81994,2438.6,2438.5,1.52306]
[1751460022510,0.81994,2438.6,2438.5,0.7031]
[1751460022706,2.04988,2438.6,2438.2,2.27077]
[1751460022911,3.48514407,2438.3,2438.2,0.6881]
[1751460023113,25.81704,2438.3,2438.2,0.6881]
[1751460023412,25.81704,2438.3,2438.2,1.50817]
[1751460024412,25.81704,2438.3,2438.2,0.6881]
[1751460024613,0.82007,2438.2,2438.1,0.7147]
[1751460025215,0.82007,2438.2,2438.1,1.53481]
[1751460025912,0.82007,2438.2,2438.1,0.7147]
[1751460026716,0.82007,2438.2,2438.1,1.53481]
[1751460026919,0.82007,2438.2,2438.1,0.7147]
[1751460027111,0.82007,2438.2,2438.1,1.53481]
[1751460027614,0.82007,2438.2,2438.1,0.7147]
[1751460028115,0.82007,2438.2,2438.1,1.53481]
[1751460028313,0.82007,2438.2,2438.1,0.7147]
[1751460028517,0.82007,2438.2,2438.1,1.53481]
[1751460028713,0.82007,2438.2,2438.1,0.7147]
[1751460029519,0.82007,2438.2,2438.1,1.53481]
[1751460029712,0.82007,2438.2,2438.1,0.7147]
[1751460030114,0.82007,2438.2,2438.1,1.53481]
[1751460030413,0.82007,2438.2,2438.1,4.19991407]
[1751460030916,0.82007,2438.2,2438.1,3.37980407]
[1751460031111,0.82007,2438.2,2438.1,4.19991407]
[1751460035223,0.82007,2438.2,2438.1,1.53481]
[1751460035518,0.82007,2438.2,2438.1,4.19991407]
[1751460035816,0.82007,2438.2,2438.1,0.7147]
[1751460036018,0.82007,2438.2,2438.1,1.53481]
[1751460036313,0.82007,2438.2,2438.1,0.7147]
[1751460036518,0.82007,2438.2,2438.1,1.53481]
[1751460037618,0.82007,2438.2,2438.1,2.87941]
[1751460037819,0.82007,2438.4,2438.3,0.82002]
[1751460038012,37.43007,2438.4,2438.3,3.48512407]
[1751460038217,38.15617,2438.4,2438.3,2.66510407]
[1751460038417,0.82004,2438.3,2438.2,1.53045]
[1751460039518,25.81304,2438.3,2438.2,2.86965]
[1751460039917,25.81304,2438.3,2438.2,1.53045]
[1751460040217,25.81304,2438.3,2438.2,0.82005]
[1751460040417,26.53914,2438.3,2438.2,0.82005]
[1751460040620,0.82007,2438.2,2438.1,1.53479]
[1751460041821,0.82007,2438.2,2438.1,4.19989407]
[1751460042119,0.82007,2438.2,2438.1,5.65359407]
[1751460046325,25.81007,2438.2,2438.1,5.65359407]
[1751460046721,0.82007,2438.2,2438.1,5.65359407]
[1751460046922,0.82004,2438.4,2438.3,0.82001]
[1751460047126,0.82007,2438.3,2438.2,0.82005]
[1751460047326,0.82007,2438.3,2438.2,2.21645]
[1751460050826,37.42704,2438.4,2438.1,0.7147]
[1751460050827,0.82007,2438.2,2438.1,0.7147]
[1751460051033,25.80807,2438.2,2438.1,0.7147]
[1751460051222,25.80807,2438.2,2438.1,1.53479]
[1751460052434,25.80807,2438.2,2438.1,0.7147]
[1751460052622,0.82011,2438.1,2437.9,1.3339]
[1751460052822,0.82017,2437.9,2437.8,0.6956]
[1751460053225,12.43717,2437.9,2437.8,0.6956]
[1751460054332,12.43717,2437.9,2437.8,1.51581]
[1751460054727,12.43717,2437.9,2437.8,0.6956]
[1751460057233,0.82021,2437.8,2437.7,0.7165]
[1751460057432,25.80621,2437.8,2437.7,0.7165]
[1751460057833,25.80621,2437.8,2437.7,1.53674]
[1751460058133,25.80621,2437.8,2437.7,2.0487]
[1751460058633,25.80621,2437.8,2437.7,2.86894]
[1751460059430,25.80621,2437.8,2437.7,0.7165]
[1751460060931,0.82043,2437.3,2437.0,2.05117]
[1751460061232,2.05071,2437.6,2437.0,2.05117]
[1751460061233,24.985,2437.2,2437.1,2.16329]
[1751460061431,24.985,2437.2,2437.1,3.62549]
[1751460061632,24.985,2437.2,2437.1,6.29059407]
[1751460062025,25.80541,2437.2,2437.1,6.29059407]
[1751460062427,24.985,2437.2,2437.1,6.29059407]
[1751460062731,25.80541,2437.2,2437.1,6.29059407]
[1751460062932,24.985,2437.2,2437.1,6.29059407]
[1751460063334,25.80541,2437.2,2437.1,6.29059407]
[1751460064236,24.985,2437.2,2437.1,6.29059407]
[1751460064533,0.82037,2437.4,2437.3,0.82033]
[1751460064732,37.42437,2437.4,2437.3,0.82033]
[1751460064934,37.42437,2437.4,2437.3,3.48548407]
[1751460065131,0.82038,2437.3,2437.2,2.14618]
[1751460066234,36.604,2437.4,2437.1,4.82844407]
[1751460066235,0.82041,2437.2,2437.1,4.82844407]
[1751460066434,25.80641,2437.2,2437.1,2.16334]
[1751460066836,25.80641,2437.2,2437.1,3.51374]
[1751460067344,0.82041,2437.2,2437.1,2.6933]
[1751460067537,25.80541,2437.2,2437.1,2.6933]
[1751460067935,25.80541,2437.2,2437.1,1.3429]
[1751460068137,0.82048,2437.0,2436.9,0.6906]
[1751460068337,25.80548,2437.0,2436.9,0.6906]
[1751460068639,0.82051,2436.9,2436.8,1.3504]
[1751460068836,2.05133,2436.9,2436.4,2.66510407]
[1751460069140,2.05133,2436.9,2436.3,2.05177]
[1751460069141,0.82065,2436.6,2436.5,1.54122]
[1751460069337,0.82065,2436.6,2436.5,42.34122]
[1751460069838,0.82065,2436.6,2436.5,45.00632407]
[1751460070739,0.82065,2436.6,2436.5,40.8]
[1751460071238,0.82065,2436.6,2436.5,0.82065]
[1751460071438,37.41865,2436.6,2436.5,2.99485]
[1751460072331,37.41865,2436.6,2436.5,0.7238]
[1751460072535,0.82068,2436.4,2436.3,0.7206]
[1751460072733,25.80768,2436.4,2436.3,1.54131]
[1751460072935,25.80768,2436.4,2436.3,42.34131]
[1751460073140,0.82075,2436.2,2436.1,2.1629]
[1751460073334,25.80675,2436.2,2436.1,2.1629]
[1751460073535,24.986,2436.2,2436.1,5.64877407]
[1751460074039,24.986,2436.2,2436.1,5.64878407]
[1751460074239,0.6685,2436.8,2436.2,2.05187]
[1751460074438,0.82054,2436.8,2436.7,2.66510407]
[1751460074638,0.82054,2436.8,2436.6,0.82058]
[1751460074639,0.8206,2436.7,2436.6,0.82058]
[1751460074938,0.8206,2436.7,2436.6,3.65638]
[1751460075444,0.82056,2436.8,2436.7,0.82054]
[1751460075631,37.42456,2436.8,2436.7,2.26854]
[1751460075835,37.42456,2436.8,2436.7,1.448]
[1751460076041,37.42456,2436.8,2436.7,2.26858]
[1751460076537,0.7139,2437.0,2436.8,0.82052]
[1751460076738,0.82054,2436.8,2436.7,2.26856]
[1751460077040,0.82054,2436.8,2436.7,1.448]
[1751460078136,0.82054,2436.8,2436.7,2.26858]
[1751460078642,0.82054,2436.8,2436.7,1.448]
[1751460078843,0.82058,2436.7,2436.6,1.3878]
[1751460079037,28.47368407,2436.7,2436.6,0.7125]
[1751460079441,0.82065,2436.5,2436.4,0.6831]
[1751460079641,25.80865,2436.5,2436.4,0.6831]
[1751460079837,25.80865,2436.5,2436.4,1.50378]
[1751460080142,25.80865,2436.5,2436.4,0.6831]
[1751460080336,25.80865,2436.5,2436.1,0.6618]
[1751460080337,29.70474407,2436.5,2436.1,0.6618]
[1751460080543,0.82075,2436.2,2436.1,0.6618]
[1751460080747,0.82081,2436.0,2435.9,2.1588]
[1751460082940,0.82081,2436.0,2435.9,0.6989]
[1751460083140,37.42581,2436.0,2435.9,0.6989]
[1751460083746,0.82088,2435.8,2435.7,0.6618]
[1751460084238,0.82088,2435.8,2435.7,2.0047]
[1751460085043,0.82088,2435.8,2435.7,0.6618]
[1751460086047,0.82088,2435.8,2435.7,2.0047]
[1751460086349,37.42888,2435.8,2435.7,2.0047]
[1751460087341,37.42888,2435.8,2435.7,2.82561]
[1751460087647,37.43188,2435.8,2435.7,2.0047]
[1751460088248,37.43188,2435.8,2435.7,0.6618]
[1751460088648,37.43188,2435.8,2435.7,2.034]
[1751460089941,37.43388,2435.8,2435.7,2.034]
[1751460091452,40.09898407,2435.8,2435.7,0.6618]
[1751460093453,0.82088,2435.8,2435.7,0.6618]
[1751460093755,37.43588,2435.8,2435.7,2.1199]
[1751460098252,0.82088,2435.8,2435.7,2.1199]
[1751460098453,37.42988,2435.8,2435.7,2.1199]
[1751460100156,0.82088,2435.8,2435.7,2.1199]
[1751460100358,37.43188,2435.8,2435.7,2.1199]
[1751460100752,12.43788,2435.8,2435.7,2.94081]
[1751460100953,37.43088,2435.8,2435.7,2.94081]
[1751460101548,0.82088,2435.8,2435.7,2.94079]
[1751460101749,24.992,2435.8,2435.7,2.1199]
[1751460101954,25.81288,2435.8,2435.7,2.1199]
[1751460102554,4.10492,2435.6,2434.8,0.82119]
[1751460102759,0.82123,2434.8,2434.7,0.82123]
[1751460102952,0.82126,2434.7,2434.6,0.82126]
[1751460103459,0.00616118,2435.0,2434.9,0.82118]
[1751460103658,0.00616118,2435.0,2434.9,3.48628407]
[1751460103860,24.99716118,2435.0,2434.9,3.48628407]
[1751460105660,0.82103,2435.4,2435.3,0.82105]
[1751460105858,37.43103,2435.4,2435.3,0.82105]
[1751460106561,37.43003,2435.4,2435.3,2.94945]
[1751460106761,37.43003,2435.4,2435.3,2.1284]
[1751460106960,0.82105,2435.3,2435.2,0.704]
[1751460107366,0.82119,2435.0,2434.9,0.82116]
[1751460107558,25.81319,2435.0,2434.9,0.82116]
[1751460107758,28.47829407,2435.0,2434.9,0.82116]
[1751460109170,27.65710407,2435.0,2434.9,2.18276]
[1751460109466,0.82113,2435.1,2435.0,0.82114]
[1751460109467,0.82112,2435.1,2435.0,0.82114]
[1751460109669,40.09722407,2435.1,2435.0,0.82114]
[1751460110564,39.27610407,2435.1,2435.0,0.82114]
[1751460111865,2.66510407,2435.1,2435.0,0.82114]
[1751460112061,39.27810407,2435.1,2435.0,0.82114]
[1751460112266,2.66510407,2435.1,2435.0,0.82114]
[1751460112466,36.613,2435.1,2435.0,0.82114]
[1751460112771,14.28410407,2435.2,2435.1,0.82112]
[1751460112972,39.27810407,2435.2,2435.1,2.94342]
[1751460113869,0.00616118,2435.5,2435.4,0.82102]
[1751460114074,25.00016118,2435.5,2435.4,0.82102]
[1751460114776,25.82114118,2435.5,2435.4,0.82102]
[1751460116871,0.82102,2435.4,2435.3,1.355]
[1751460117078,3.48612407,2435.4,2435.3,0.82105]
[1751460117373,0.82105,2435.3,2435.2,1.52788]
[1751460117673,0.82105,2435.3,2435.2,2.97918]
[1751460119575,3.48614407,2435.4,2435.3,0.82105]
[1751460119775,3.48614407,2435.4,2435.3,2.27235]
[1751460120178,40.09814407,2435.4,2435.3,2.27235]
[1751460120868,0.00616118,2435.5,2435.3,1.4513]
[1751460121074,11.62516118,2435.5,2435.4,2.20012]
[1751460121273,0.00616118,2435.5,2435.4,2.20012]
[1751460121576,24.99916118,2435.5,2435.4,2.20012]
[1751460123477,25.82014118,2435.5,2435.4,2.20012]
[1751460124778,24.99916118,2435.5,2435.4,2.20012]
[1751460124979,25.82014118,2435.5,2435.4,2.20012]
[1751460125179,24.99916118,2435.5,2435.4,2.20012]
[1751460125479,25.82014118,2435.5,2435.4,2.20012]
[1751460125668,24.99916118,2435.5,2435.4,2.20012]
[1751460126075,24.99716118,2435.5,2435.4,2.20012]
[1751460126879,25.81814118,2435.5,2435.4,2.20012]
[1751460127073,24.99716118,2435.5,2435.4,2.20012]
[1751460127681,0.82105,2435.4,2435.3,0.82102]
[1751460127876,0.82115,2435.1,2435.0,0.82112]
[1751460128178,28.47625407,2435.1,2435.0,0.82112]
[1751460129074,3.48625407,2435.1,2435.0,0.82112]
[1751460129675,2.66510407,2435.1,2435.0,0.82112]
[1751460130180,3.48622407,2435.1,2435.0,0.82112]
[1751460130580,2.66510407,2435.1,2435.0,0.82112]
[1751460131577,3.48622407,2435.1,2435.0,0.82112]
[1751460132278,0.82112,2435.1,2435.0,0.82112]
[1751460132478,0.82112,2435.1,2435.0,2.22012]
[1751460132778,0.82112,2435.1,2435.0,0.82112]
[1751460133781,28.47622407,2435.1,2435.0,0.82112]
[1751460134483,28.47622407,2435.1,2434.9,1.52006]
[1751460134484,0.82115,2435.0,2434.9,1.52006]
[1751460134884,28.47624407,2435.1,2435.0,0.82115]
[1751460136686,0.82114,2435.1,2435.0,0.82115]
[1751460136877,0.82114,2435.1,2435.0,2.22245]
[1751460137076,25.81214,2435.1,2435.0,2.22245]
[1751460141684,25.81214,2435.1,2434.9,0.6989]
[1751460141892,3.48625407,2435.0,2434.9,1.52008]
[1751460142188,0.82115,2435.0,2434.9,1.52008]
[1751460142389,3.48625407,2435.0,2434.9,1.52008]
[1751460142888,25.81115,2435.0,2434.9,1.52008]
[1751460143085,25.81115,2435.0,2434.9,2.94708]
[1751460143291,24.99,2435.0,2434.9,2.94708]
[1751460143793,25.81115,2435.0,2434.9,2.94708]
[1751460144893,24.99,2435.0,2434.9,2.94708]
[1751460145092,25.81115,2435.0,2434.9,2.94708]
[1751460147493,25.81115,2435.0,2434.9,0.6989]
[1751460147698,0.82118,2434.9,2434.8,1.49985118]
[1751460147894,0.82118,2434.9,2434.8,0.00616118]
[1751460148197,0.82129,2434.6,2434.5,1.5212]
[1751460148404,0.82129,2434.6,2434.5,42.3212]
[1751460149201,0.82129,2434.6,2434.5,40.8]
[1751460149399,3.48639407,2434.6,2434.5,40.8]
[1751460149895,15.10339407,2434.6,2434.5,40.8]
[1751460150994,15.10339407,2434.6,2434.4,1.54913]
[1751460150995,0.82132,2434.5,2434.4,0.7278]
[1751460151299,25.81132,2434.5,2434.4,0.7278]
[1751460151499,25.81132,2434.5,2434.4,1.54915]
[1751460152099,25.81132,2434.5,2434.4,3.01345]
[1751460152697,24.99,2434.5,2434.4,3.01345]
[1751460153496,0.6965,2434.8,2434.5,2.05327]
[1751460153800,0.82123,2434.8,2434.7,0.82125]
[1751460154003,37.43023,2434.8,2434.7,0.82125]
[1751460154293,37.43023,2434.8,2434.4,0.7278]
[1751460154294,36.609,2434.8,2434.4,0.7278]
[1751460154500,0.82131,2434.6,2434.5,0.82128]
[1751460154800,25.81131,2434.6,2434.5,0.82128]
[1751460156201,0.82132,2434.5,2434.4,2.24703]
[1751460156402,25.81131,2434.6,2434.5,0.82132]
[1751460157403,0.82131,2434.6,2434.5,0.82132]
[1751460157602,37.42731,2434.6,2434.5,2.27872]
[1751460157799,37.42731,2434.6,2433.6,12.28981871]
[1751460157800,36.606,2434.6,2433.6,8.18184871]
[1751460158104,2.05308,2434.8,2434.3,2.66510407]
[1751460158298,11.615,2434.7,2434.3,2.66510407]
[1751460158602,11.615,2434.7,2434.4,3.00863]
[1751460158603,0.82135,2434.5,2434.4,3.00863]
[1751460159300,25.81235,2434.5,2434.4,2.1873]
[1751460159601,25.81235,2434.5,2434.4,3.00865]
[1751460160603,25.81235,2434.5,2434.4,2.1873]
[1751460160903,25.81235,2434.5,2434.4,3.00865]
[1751460161403,24.991,2434.5,2434.4,3.00865]
[1751460161603,0.8213,2434.6,2434.5,0.82132]
[1751460161803,0.82129,2434.7,2434.6,0.82125]
[1751460161997,25.81329,2434.7,2434.6,1.3509]
[1751460162198,4.1065,2434.6,2432.8,4.10945]
[1751460162394,4.71869407,2434.2,2433.7,2.66510407]
[1751460162599,0.82153,2433.9,2433.8,0.82153]
[1751460162800,0.82153,2433.9,2433.8,1.4479]
[1751460164302,0.82156,2433.8,2433.7,41.62158]
[1751460164501,0.82156,2433.8,2433.7,40.8]
[1751460165307,0.82162,2433.6,2433.5,1.4479]
[1751460165507,0.82162,2433.6,2433.5,2.26956]
[1751460165708,0.82162,2433.6,2433.5,43.06956]
[1751460166510,0.82161,2433.7,2433.5,42.2479]
[1751460166709,25.058,2433.8,2433.7,0.82159]
[1751460167310,25.87956,2433.8,2433.7,0.82159]
[1751460167513,0.8216,2433.7,2433.6,0.82159]
[1751460167714,25.87958,2433.8,2433.7,0.82159]
[1751460168207,25.87958,2433.8,2433.2,2.05438]
[1751460168208,41.676,2433.8,2432.6,2.05483]
[1751460168411,2.66510407,2433.6,2432.9,2.05466]
[1751460168603,0.82183,2433.1,2433.0,41.6218]
[1751460168912,0.82183,2433.1,2433.0,40.8]
[1751460169106,25.229,2433.3,2433.0,45.51966407]
[1751460169307,26.05072,2433.3,2433.2,0.82176]
[1751460169703,0.82171,2433.4,2433.3,0.82169]
[1751460169908,0.82174,2433.3,2433.2,0.82172]
[1751460171108,0.82172,2433.4,2433.3,0.8217]
[1751460171313,0.82175,2433.3,2433.2,0.82173]
[1751460171704,0.82175,2433.3,2433.0,40.8]
[1751460171705,25.237,2433.5,2433.0,43.46510407]
[1751460171906,0.82176,2433.2,2433.1,1.4415]
[1751460172109,0.82176,2433.2,2431.9,4.11089]
[1751460172110,64.46920814,2433.2,2431.5,4.11156]
[1751460172413,2.66510407,2432.8,2432.3,0.82205]
[1751460172713,2.05466,2432.9,2431.9,2.66510407]
[1751460172714,2.66510407,2432.4,2431.9,2.66510407]
[1751460172912,25.404,2432.3,2432.2,0.82207]
[1751460173108,25.403,2432.3,2432.1,43.46510407]
[1751460173308,0.69636118,2432.7,2432.3,2.05516]
[1751460173309,0.00616118,2432.7,2432.3,2.05516]
[1751460173510,0.00616118,2432.7,2432.6,3.48706407]
[1751460173711,0.00616118,2432.7,2432.6,0.82196]
[1751460174316,11.621,2433.6,2433.2,0.82176]
[1751460174612,0.82163,2433.6,2432.9,7.1907673]
[1751460174807,7.1897373,2434.2,2433.0,1.4374]
[1751460175012,25.464,2433.7,2433.5,0.82163]
[1751460175214,0.82158,2433.8,2433.2,3.49176]
[1751460175414,25.47,2433.7,2433.2,3.49176]